bitfinex-derivatives/quotes_SOLF0:USTF0_20250202
["timestamp","ask_amount","ask_price","bid_price","bid_amount"]
[1738487858025,5.81467941,213.81,213.78,0.03127655]
[1738487858822,5.81467941,213.79,213.78,0.03127655]
[1738487860521,5.81467941,213.79,213.7,5.81467941]
[1738487860724,5.81467941,213.77,213.7,5.81467941]
[1738487860927,5.81467941,213.75,213.68,5.81467941]
[1738487861318,5.81467941,213.75,213.7,4.6799]
[1738487861720,5.84620287,213.75,213.7,4.6799]
[1738487862128,5.84620287,213.75,213.72,4.6796]
[1738487862325,0.03152346,213.75,213.7,5.81467941]
[1738487863633,0.03152346,213.75,213.73,4.6793]
[1738487864021,0.03152346,213.75,213.7,5.81467941]
[1738487864226,0.03152346,213.75,213.74,10.49387941]
[1738487865422,5.81467941,213.83,213.81,4.6776]
[1738487865720,5.81467941,213.83,213.77,5.81467941]
[1738487865924,5.81467941,213.83,213.78,4.6781]
[1738487866130,5.81467941,213.83,213.75,5.81467941]
[1738487866629,0.03302923,213.81,213.79,4.678]
[1738487868932,0.03302923,213.81,213.8,4.6779]
[1738487879536,0.03302923,213.81,213.77,5.85034614]
[1738487879738,0.03302923,213.81,213.79,4.6786]
[1738487880133,0.03302923,213.81,213.77,4.71446673]
[1738487881339,0.03302923,213.81,213.78,4.6788]
[1738487882042,0.03302923,213.81,213.77,0.03566673]
[1738487883734,0.03302923,213.81,213.77,4.71446673]
[1738487885444,5.84770864,213.81,213.77,0.03566673]
[1738487885640,5.81467941,213.78,213.69,5.81467941]
[1738487885842,5.81467941,213.76,213.69,5.81467941]
[1738487886145,10.49397941,213.76,213.69,10.49517941]
[1738487886346,10.49397941,213.76,213.69,5.81467941]
[1738487886644,5.81467941,213.76,213.69,5.81467941]
[1738487886845,0.03108945,213.75,213.69,10.49527941]
[1738487887142,0.03108945,213.75,213.69,5.81467941]
[1738487888443,0.03108945,213.75,213.71,4.6803]
[1738487889442,0.03108945,213.75,213.68,4.681]
[1738487889744,0.03108945,213.75,213.67,5.81467941]
[1738487890744,4.71058945,213.75,213.69,4.6807]
[1738487891744,5.81467941,213.74,213.69,4.6807]
[1738487891948,10.49437941,213.74,213.67,10.49567941]
[1738487892444,10.49437941,213.74,213.67,5.81467941]
[1738487893248,4.6799,213.73,213.67,10.49587941]
[1738487893444,4.6799,213.73,213.67,4.6812]
[1738487893744,5.81467941,213.74,213.67,5.81467941]
[1738487894747,5.81467941,213.74,213.68,4.6808]
[1738487895847,5.81467941,213.74,213.67,5.81467941]
[1738487896048,10.49437941,213.74,213.69,4.6807]
[1738487896249,5.81467941,213.74,213.65,5.81467941]
[1738487896449,4.6803,213.71,213.66,4.6813]
[1738487897550,5.84747737,213.72,213.66,4.6813]
[1738487897944,5.84747737,213.72,213.65,5.81467941]
[1738487898142,10.52767737,213.72,213.67,4.6812]
[1738487899351,10.49517941,213.7,213.65,4.6815]
[1738487899546,5.81467941,213.66,213.59,5.81467941]
[1738487899748,5.81467941,213.64,213.57,5.81467941]
[1738487900252,4.6823,213.62,213.55,10.49827941]
[1738487900552,10.49697941,213.62,213.55,5.81467941]
[1738487900750,0.03050053,213.61,213.55,5.81467941]
[1738487900948,0.03050053,213.61,213.53,5.81467941]
[1738487901147,5.81467941,213.6,213.53,5.81467941]
[1738487901347,5.81467941,213.58,213.51,5.81467941]
[1738487902051,0.03545969,213.57,213.51,5.81467941]
[1738487902251,0.03545969,213.57,213.53,5.81467941]
[1738487903053,0.03545969,213.57,213.51,5.81467941]
[1738487903251,0.03545969,213.57,213.53,5.81467941]
[1738487903451,0.03545969,213.57,213.53,10.49867941]
[1738487903653,0.03545969,213.57,213.53,5.81467941]
[1738487904045,0.03545969,213.57,213.55,4.6838]
[1738487904245,0.03545969,213.57,213.55,10.49847941]
[1738487905956,0.03545969,213.57,213.55,4.6838]
[1738487910562,0.03545969,213.57,213.53,5.81467941]
[1738487910760,0.03545969,213.57,213.53,4.6841]
[1738487911361,0.03545969,213.57,213.54,4.6839]
[1738487911565,0.03545969,213.57,213.51,5.81467941]
[1738487911863,5.8501391,213.57,213.49,5.81467941]
[1738487913063,5.8501391,213.57,213.51,4.6846]
[1738487913269,5.8501391,213.57,213.49,5.81467941]
[1738487913572,5.81467941,213.55,213.47,5.81467941]
[1738487914168,4.684,213.54,213.48,4.6851]
[1738487914666,4.684,213.54,213.47,5.81467941]
[1738487914964,4.684,213.54,213.49,4.685]
[1738487915169,0.03066761,213.53,213.49,4.685]
[1738487915562,0.03066761,213.53,213.47,5.81467941]
[1738487915766,10.52954702,213.53,213.47,4.6854]
[1738487916069,5.81467941,213.51,213.47,4.6854]
[1738487916370,5.81467941,213.51,213.46,4.6857]
[1738487916973,5.81467941,213.51,213.47,4.6855]
[1738487917369,5.84423728,213.51,213.47,4.6855]
[1738487917673,5.84423728,213.51,213.49,4.6849]
[1738487917674,0.02955787,213.51,213.49,4.6849]
[1738487919270,0.02955787,213.51,213.48,4.6853]
[1738487919474,0.02955787,213.51,213.47,5.81467941]
[1738487919976,0.02955787,213.51,213.5,4.6849]
[1738487921367,12.02427941,213.63,213.56,4.6835]
[1738487921569,7.34207941,213.63,213.56,10.49817941]
[1738487922376,0.03057868,213.62,213.57,0.03171767]
[1738487922572,0.03057868,213.62,213.58,5.81467941]
[1738487922876,0.03057868,213.62,213.6,5.81467941]
[1738487923382,0.03057868,213.62,213.61,4.6824]
[1738487924282,0.03057868,213.62,213.58,5.81467941]
[1738487924476,0.03057868,213.62,213.59,4.6827]
[1738487925379,0.03057868,213.62,213.58,5.81467941]
[1738487925578,0.03057868,213.62,213.6,4.6827]
[1738487925977,5.81467941,213.7,213.6,5.81467941]
[1738487926178,5.81467941,213.7,213.66,4.6813]
[1738487926572,5.81467941,213.7,213.63,5.81467941]
[1738487926881,5.81467941,213.75,213.67,5.81467941]
[1738487927277,5.84598612,213.73,213.69,0.035812]
[1738487927478,5.81467941,213.75,213.69,5.81467941]
[1738487927680,0.03333479,213.73,213.69,5.84531912]
[1738487928283,0.03333479,213.73,213.69,0.03063971]
[1738487929286,5.81467941,213.71,213.69,0.03063971]
[1738487929785,4.6805,213.7,213.69,0.03063971]
[1738487930083,5.81467941,213.71,213.58,1.4299]
[1738487930383,5.81467941,213.65,213.58,1.4299]
[1738487930883,5.81467941,213.65,213.6,4.6824]
[1738487931083,0.0354145,213.64,213.6,4.6824]
[1738487931382,0.0354145,213.64,213.61,4.6824]
[1738487932178,4.7172145,213.64,213.59,0.03165665]
[1738487934080,4.6822,213.62,213.59,0.03165665]
[1738487934280,0.0354145,213.64,213.59,0.03165665]
[1738487934482,9.11235516,213.63,213.59,0.03165665]
[1738487935175,4.6827,213.6,213.59,0.03165665]
[1738487935380,10.51225516,213.63,213.53,4.6841]
[1738487935579,9.11235516,213.6,213.53,4.6841]
[1738487936583,0.02965504,213.59,213.5,1.4662]
[1738487936788,0.02965504,213.59,213.54,4.6839]
[1738487936990,0.02965504,213.59,213.5,10.57855516]
[1738487937788,4.71255504,213.59,213.52,4.6842]
[1738487937988,0.02965504,213.59,213.5,1.4662]
[1738487938590,4.6834,213.57,213.51,4.6844]
[1738487938787,4.6834,213.57,213.5,1.4662]
[1738487939190,4.6834,213.57,213.51,4.6846]
[1738487939387,9.11235516,213.6,213.51,4.6846]
[1738487939593,4.71455549,213.56,213.51,4.6846]
[1738487940394,0.03095549,213.56,213.51,4.6846]
[1738487940592,0.03095549,213.56,213.47,9.11235516]
[1738487940892,0.03095549,213.56,213.52,4.6844]
[1738487942291,4.71445549,213.56,213.52,4.6844]
[1738487942789,0.03095549,213.56,213.45,1.4758]
[1738487942992,4.6839,213.55,213.45,1.4758]
[1738487943995,0.03095549,213.56,213.47,9.11235516]
[1738487944194,0.03095549,213.56,213.53,9.11235516]
[1738487944396,9.11235516,213.67,213.53,9.11235516]
[1738487944597,9.11235516,213.67,213.54,1.5083]
[1738487945092,25.83397444,213.73,213.59,9.11235516]
[1738487945496,0.03303714,213.68,213.64,0.02957195]
[1738487946097,0.03303714,213.68,213.65,4.6814]
[1738487946298,0.03303714,213.68,213.64,0.02957195]
[1738487947698,0.03303714,213.68,213.66,4.6813]
[1738487948200,0.03303714,213.68,213.64,0.02957195]
[1738487949001,4.6811,213.67,213.64,0.02957195]
[1738487949295,0.03303714,213.68,213.64,0.02957195]
[1738487949999,4.71393714,213.68,213.64,0.02957195]
[1738487953203,0.03303714,213.68,213.64,0.02957195]
[1738487953702,0.03303714,213.68,213.66,4.6813]
[1738487954107,0.03303714,213.68,213.64,0.02957195]
[1738487954404,0.03303714,213.68,213.67,4.6811]
[1738487954595,0.03303714,213.68,213.65,9.11235516]
[1738487954596,9.11235516,213.79,213.65,10.65845516]
[1738487954800,13.79095516,213.79,213.72,4.68]
[1738487955705,4.6791,213.76,213.73,0.0354014]
[1738487955905,0.03239657,213.78,213.73,0.0354014]
[1738487956603,4.71129657,213.78,213.73,0.0354014]
[1738487958003,0.03239657,213.78,213.76,4.679]
[1738487958908,0.03239657,213.78,213.74,4.6794]
[1738487959108,0.03239657,213.78,213.73,0.0354014]
[1738487959610,0.03239657,213.78,213.73,4.7152014]
[1738487960204,0.03239657,213.78,213.73,0.0354014]
[1738487960701,0.03239657,213.78,213.74,4.6796]
[1738487960904,0.03239657,213.78,213.73,0.0354014]
[1738487962011,0.03239657,213.78,213.75,4.6794]
[1738487962310,0.03239657,213.78,213.73,0.0354014]
[1738487962507,0.03239657,213.78,213.74,4.6795]
[1738487962809,0.03239657,213.78,213.73,0.0354014]
[1738487963010,0.03239657,213.78,213.75,4.6794]
[1738487963309,0.03239657,213.78,213.73,0.0354014]
[1738487963710,0.03239657,213.78,213.75,4.6794]
[1738487964211,18.22471032,213.76,213.53,21.27047639]
[1738487964406,9.11235516,213.61,213.51,9.94491674]
[1738487964711,13.79555516,213.58,213.51,9.94491674]
[1738487964912,9.11235516,213.55,213.5,123.13246831]
[1738487965409,0.03161941,213.55,213.5,123.16105954]
[1738487965802,9.14397457,213.55,213.5,123.16105954]
[1738487966510,4.6843,213.53,213.5,123.16105954]
[1738487966808,0.03161941,213.55,213.5,123.16105954]
[1738487967012,0.03161941,213.55,213.5,0.02859123]
[1738487967609,0.03161941,213.55,213.51,9.11235516]
[1738487967813,0.03161941,213.55,213.54,9.11235516]
[1738487968009,1.4931,213.66,213.54,9.11235516]
[1738487968809,1.4931,213.66,213.55,4.6836]
[1738487969112,0.033351,213.63,213.58,0.02969114]
[1738487970711,14.61979907,213.63,213.44,1.0123]
[1738487970911,14.58644807,213.63,213.44,1.0123]
[1738487971113,4.6832,213.58,213.44,5.6983]
[1738487971304,14.58644807,213.63,213.44,1.0123]
[1738487971808,0.03496714,213.56,213.51,0.03046362]
[1738487973614,0.03496714,213.56,213.51,4.71496362]
[1738487973913,0.03496714,213.56,213.51,0.03046362]
[1738487974307,0.03496714,213.56,213.51,4.71486362]
[1738487974505,0.03496714,213.56,213.51,0.03046362]
[1738487975110,0.03496714,213.56,213.52,4.6842]
[1738487975307,0.03496714,213.56,213.51,0.03046362]
[1738487979512,4.6839,213.54,213.51,0.03046362]
[1738487981318,0.03496714,213.56,213.51,0.03046362]
[1738487982919,4.6837,213.55,213.51,0.03046362]
[1738487984426,4.6839,213.54,213.51,0.03046362]
[1738487984626,0.03496714,213.56,213.51,0.03046362]
[1738487985322,4.6842,213.53,213.51,0.03046362]
[1738487986030,0.03496714,213.56,213.51,0.03046362]
[1738487986225,4.6843,213.52,213.51,0.03046362]
[1738487993523,9.12601659,213.54,213.38,1.4116]
[1738487993721,9.12601659,213.49,213.38,1.4116]
[1738487993922,9.12601659,213.49,213.34,1.5314]
[1738487994124,4.6862,213.44,213.34,1.5314]
[1738487994325,1.4046,213.48,213.34,1.5314]
[1738487994630,1.4046,213.48,213.42,4.6865]
[1738487994822,0.03099784,213.43,213.42,4.6865]
[1738487995024,0.03099784,213.43,213.36,9.12601659]
[1738487996237,0.03099784,213.43,213.39,4.6871]
[1738487997028,4.6868,213.41,213.35,4.688]
[1738487997333,0.03099784,213.43,213.34,1.5314]
[1738487997531,4.687,213.4,213.34,1.5314]
[1738487998333,0.03099784,213.43,213.34,1.5314]
[1738487998627,4.6868,213.41,213.34,6.2196]
[1738487999033,4.687,213.4,213.34,1.5314]
[1738487999836,0.03099784,213.43,213.34,1.5314]
[1738488001534,4.6866,213.42,213.35,4.6879]
[1738488001733,0.03099784,213.43,213.35,4.6879]
[1738488002136,4.71749784,213.43,213.36,4.6878]
[1738488002438,0.03099784,213.43,213.36,4.6878]
[1738488002830,0.03099784,213.43,213.31,1.4887]
[1738488003234,0.03099784,213.43,213.33,9.12601659]
[1738488003538,4.71739784,213.43,213.37,4.6876]
[1738488003737,0.03099784,213.43,213.33,9.12601659]
[1738488004537,0.03099784,213.43,213.34,1.5516]
[1738488005137,0.03099784,213.43,213.38,4.6874]
[1738488005338,0.03099784,213.43,213.34,1.5516]
[1738488006134,0.03099784,213.43,213.37,4.6876]
[1738488006339,0.03099784,213.43,213.34,1.5516]
[1738488007339,0.03099784,213.43,213.37,9.12601659]
[1738488008041,0.03099784,213.43,213.42,4.6866]
[1738488009735,0.03099784,213.43,213.34,10.67761659]
[1738488009935,0.03099784,213.43,213.37,4.6875]
[1738488010839,4.71749784,213.43,213.37,4.6875]
[1738488011434,0.03099784,213.43,213.35,4.6879]
[1738488012043,4.6868,213.42,213.35,4.6879]
[1738488012442,4.6868,213.42,213.34,1.5516]
[1738488012642,4.6868,213.42,213.36,4.6878]
[1738488013339,0.03099784,213.43,213.31,9.12601659]
[1738488013539,9.12601659,213.44,213.33,4.6885]
[1738488013844,0.03565813,213.39,213.33,4.6885]
[1738488014243,0.03565813,213.39,213.35,4.6881]
[1738488016745,0.03565813,213.39,213.31,4.6889]
[1738488017153,0.03565813,213.39,213.28,9.12601659]
[1738488017747,4.6887,213.33,213.22,9.66106742]
[1738488017948,4.6887,213.33,213.26,4.69]
[1738488018151,4.6887,213.33,213.22,9.66106742]
[1738488018152,0.03081768,213.3,213.22,9.66106742]
[1738488018352,4.6891,213.31,213.22,0.53505083]
[1738488018648,0.03020636,213.28,213.19,132.2584849]
[1738488018953,0.03020636,213.28,213.19,133.7035849]
[1738488019352,0.03020636,213.28,213.25,4.6903]
[1738488019847,0.03020636,213.28,213.27,4.6899]
[1738488021253,13.81321659,213.4,213.32,4.6888]
[1738488021850,9.12601659,213.4,213.34,4.6883]
[1738488022054,4.6867,213.42,213.28,9.12601659]
[1738488022251,4.6867,213.42,213.33,0.03081573]
[1738488022456,0.0316952,213.37,213.33,0.03081573]
[1738488023855,0.0316952,213.37,213.36,4.6879]
[1738488024357,13.81191659,213.46,213.33,0.03081573]
[1738488024557,13.81191659,213.46,213.31,9.12601659]
[1738488025059,4.6855,213.48,213.34,9.12601659]
[1738488025458,0.03306241,213.43,213.39,0.03289302]
[1738488025857,0.03306241,213.43,213.42,4.6866]
[1738488027461,0.03306241,213.43,213.39,0.03289302]
[1738488028859,0.03306241,213.43,213.4,4.687]
[1738488029864,0.03306241,213.43,213.42,4.6866]
[1738488033062,0.03306241,213.43,213.4,4.6868]
[1738488033263,0.03306241,213.43,213.39,1.52729302]
[1738488033565,0.03306241,213.43,213.41,4.6867]
[1738488034266,0.03306241,213.43,213.42,4.6866]
[1738488038263,9.12601659,213.55,213.51,4.6846]
[1738488038569,9.12601659,213.58,213.46,9.12601659]
[1738488038769,9.12601659,213.58,213.43,9.12601659]
[1738488038970,9.12601659,213.55,213.4,9.12601659]
[1738488039268,9.12601659,213.52,213.4,9.12601659]
[1738488039464,0.03076697,213.5,213.45,0.02958839]
[1738488040971,0.03076697,213.5,213.45,4.71548839]
[1738488041874,0.03076697,213.5,213.45,0.02958839]
[1738488042675,0.03076697,213.5,213.45,4.71548839]
[1738488042875,4.71566697,213.5,213.45,0.02958839]
[1738488043578,0.03076697,213.5,213.45,0.02958839]
[1738488044876,0.03076697,213.5,213.45,4.71538839]
[1738488045273,0.03076697,213.5,213.45,0.02958839]
[1738488046178,0.03076697,213.5,213.46,4.6855]
[1738488046374,0.03076697,213.5,213.45,0.02958839]
[1738488046678,0.03076697,213.5,213.48,4.6852]
[1738488047277,0.03076697,213.5,213.49,4.685]
[1738488048478,6.697e-05,213.5,213.49,4.685]
[1738488050881,6.697e-05,213.5,213.49,13.81101659]
[1738488051274,9.12601659,213.64,213.52,9.12601659]
[1738488051475,9.12601659,213.67,213.52,9.12601659]
[1738488051676,9.12601659,213.67,213.53,1.4143]
[1738488052179,13.80731659,213.67,213.55,9.12601659]
[1738488052380,0.03569058,213.62,213.58,0.03145551]
[1738488054783,0.03569058,213.62,213.6,4.6825]
[1738488054977,0.03569058,213.62,213.58,0.03145551]
[1738488055280,9.058e-05,213.62,213.58,9.1574721]
[1738488055581,9.058e-05,213.62,213.61,13.80841659]
[1738488057188,1.5242,213.74,213.61,9.12601659]
[1738488058287,0.03443931,213.7,213.65,0.03604748]
[1738488059785,9.1604559,213.7,213.65,0.03604748]
[1738488059989,9.12601659,213.67,213.54,1.4786]
[1738488060190,4.6815,213.66,213.58,4.6831]
[1738488060389,1.4222,213.69,213.55,9.12601659]
[1738488060891,1.4222,213.69,213.58,9.12601659]
[1738488061186,9.15968633,213.64,213.6,0.03463658]
[1738488061386,9.12601659,213.61,213.49,9.12601659]
[1738488061685,9.12601659,213.61,213.46,9.12601659]
[1738488062491,0.03056351,213.56,213.51,0.03152658]
[1738488063492,4.6842,213.53,213.51,0.03152658]
[1738488063992,0.03056351,213.56,213.51,0.03152658]
[1738488066285,0.03056351,213.56,213.53,4.6841]
[1738488066992,0.03056351,213.56,213.54,4.6839]
[1738488067892,0.03056351,213.56,213.53,4.6841]
[1738488069192,0.03056351,213.56,213.51,0.03152658]
[1738488069491,0.03056351,213.56,213.54,4.6838]
[1738488071597,0.03056351,213.56,213.55,4.6837]
[1738488072999,6.0896,213.67,213.55,9.12601659]
[1738488073200,1.4083,213.67,213.59,4.6827]
[1738488073895,1.4083,213.67,213.6,4.6826]
[1738488074199,0.03442705,213.66,213.64,9.12601659]
[1738488074499,4.6793,213.76,213.64,9.12601659]
[1738488074698,0.03170137,213.67,213.64,9.12601659]
[1738488074900,0.03170137,213.67,213.63,0.0347798]
[1738488075099,9.12601659,213.72,213.58,9.12601659]
[1738488075300,0.03026449,213.67,213.63,0.03212401]
[1738488075600,0.03026449,213.67,213.65,4.6815]
[1738488077001,0.03026449,213.67,213.66,4.6813]
[1738488082711,0.03026449,213.67,213.63,0.03212401]
[1738488084518,0.03026449,213.67,213.52,10.67291659]
[1738488084711,1.5222,213.68,213.52,10.67291659]
[1738488085516,0.03525045,213.62,213.58,0.03381009]
[1738488086514,4.6828,213.6,213.58,0.03381009]
[1738488086811,0.03525045,213.62,213.49,9.12601659]
[1738488087116,4.6834,213.57,213.5,4.6846]
[1738488087318,1.5367,213.61,213.49,9.12601659]
[1738488087616,1.5367,213.61,213.5,4.6847]
[1738488087817,1.5367,213.61,213.49,9.12601659]
[1738488088017,0.03383143,213.58,213.53,0.03525176]
[1738488088717,4.6836,213.56,213.53,0.03525176]
[1738488088910,0.03383143,213.58,213.53,0.03525176]
[1738488089814,4.6833,213.57,213.53,0.03525176]
[1738488090716,0.03383143,213.58,213.53,0.03525176]
[1738488092520,4.6835,213.56,213.53,0.03525176]
[1738488093618,0.03383143,213.58,213.5,4.6848]
[1738488093820,4.6841,213.54,213.48,4.6852]
[1738488094520,9.12601659,213.6,213.46,9.12601659]
[1738488094721,4.6837,213.55,213.49,4.685]
[1738488094921,4.7160994,213.55,213.51,0.02072448]
[1738488096128,0.0323994,213.55,213.51,0.02072448]
[1738488096422,4.6844,213.52,213.51,0.02072448]
[1738488097225,0.0323994,213.55,213.44,4.686]
[1738488097422,1.4435,213.54,213.43,9.12601659]
[1738488097924,4.6848,213.5,213.41,1.5291]
[1738488098424,0.03542688,213.48,213.42,4.6864]
[1738488098825,4.6861,213.44,213.38,4.6874]
[1738488099018,9.12601659,213.51,213.34,9.12601659]
[1738488099221,0.03224884,213.43,213.34,9.12601659]
[1738488100222,0.03224884,213.43,213.36,4.6877]
[1738488100428,0.03224884,213.43,213.34,9.12601659]
[1738488101131,0.03224884,213.43,213.39,4.6871]
[1738488101325,0.03224884,213.43,213.32,1.5363]
[1738488101530,1.4435,213.54,213.4,9.12601659]
[1738488101723,1.4435,213.54,213.45,9.12601659]
[1738488102230,1.4435,213.54,213.47,4.6855]
[1738488102231,6.1274,213.54,213.47,4.6855]
[1738488102430,1.43,213.58,213.45,9.12601659]
[1738488102627,0.03421171,213.52,213.47,0.03224884]
[1738488102833,0.03421171,213.52,213.47,4.71754884]
[1738488103035,0.03421171,213.52,213.47,0.03224884]
[1738488103631,0.03421171,213.52,213.5,4.6848]
[1738488104630,0.03421171,213.52,213.48,9.12601659]
[1738488104829,1.4279,213.64,213.51,9.12601659]
[1738488105427,1.4279,213.64,213.54,4.6837]
[1738488106133,0.0328835,213.61,213.57,0.0303145]
[1738488106434,4.6827,213.6,213.57,0.0303145]
[1738488106634,0.0328835,213.61,213.57,0.0303145]
[1738488106831,9.12601659,213.6,213.57,0.0303145]
[1738488107033,4.683,213.59,213.57,0.0303145]
[1738488107428,9.12601659,213.6,213.57,0.0303145]
[1738488107637,0.0328835,213.61,213.57,0.0303145]
[1738488107832,4.7154835,213.61,213.57,0.0303145]
[1738488108033,0.0328835,213.61,213.57,0.0303145]
[1738488108638,4.7152835,213.61,213.57,0.0303145]
[1738488108835,0.0328835,213.61,213.57,0.0303145]
[1738488109231,4.6829,213.59,213.57,0.0303145]
[1738488109437,9.12601659,213.6,213.57,0.0303145]
[1738488109938,4.6831,213.58,213.57,0.0303145]
[1738488112138,0.0328835,213.61,213.57,0.0303145]
[1738488114742,4.7153835,213.61,213.57,0.0303145]
[1738488114945,0.0328835,213.61,213.57,0.0303145]
[1738488116042,0.0328835,213.61,213.58,4.6829]
[1738488117044,0.0328835,213.61,213.57,0.0303145]
[1738488118740,0.0328835,213.61,213.57,4.7134145]
[1738488119746,0.0328835,213.61,213.57,0.0303145]
[1738488120847,4.7153835,213.61,213.57,0.0303145]
[1738488123448,0.0328835,213.61,213.57,4.7135145]
[1738488123647,0.0328835,213.61,213.57,0.0303145]
[1738488124044,0.0328835,213.61,213.57,9.15633109]
[1738488124546,0.0328835,213.61,213.6,13.80861659]
[1738488124744,1.4108,213.69,213.6,9.12601659]
[1738488125844,0.02994787,213.67,213.62,0.03215305]
[1738488126349,0.02994787,213.67,213.65,4.6815]
[1738488126950,0.02994787,213.67,213.66,4.6813]
[1738488128151,4.6794,213.75,213.63,10.58331659]
[1738488128350,4.6794,213.75,213.67,4.681]
[1738488129044,4.6791,213.77,213.68,4.6809]
[1738488129350,0.03400517,213.75,213.7,0.0331809]
[1738488129544,0.03400517,213.75,213.7,4.7134809]
[1738488129746,0.03400517,213.75,213.7,0.0331809]
[1738488130152,0.03400517,213.75,213.72,4.6799]
[1738488131843,0.03400517,213.75,213.7,0.0331809]
[1738488133152,0.03400517,213.75,213.71,4.6802]
[1738488133350,0.03400517,213.75,213.72,9.12601659]
[1738488133554,4.6774,213.85,213.72,9.12601659]
[1738488133750,9.12601659,213.87,213.75,9.12601659]
[1738488134147,4.6771,213.86,213.77,4.6787]
[1738488134349,4.6771,213.86,213.75,9.12601659]
[1738488134950,0.03217927,213.83,213.78,0.03440962]
[1738488135348,4.6778,213.82,213.78,0.03440962]
[1738488135651,0.03217927,213.83,213.78,0.03440962]
[1738488136158,4.70997927,213.83,213.78,0.03440962]
[1738488136348,0.03217927,213.83,213.78,0.03440962]
[1738488136748,0.03217927,213.83,213.81,4.678]
[1738488137352,0.03217927,213.83,213.8,4.6782]
[1738488137553,0.03217927,213.83,213.78,0.03440962]
[1738488138455,0.03217927,213.83,213.8,9.12601659]
[1738488139250,0.03217927,213.83,213.82,4.6778]
[1738488140354,0.03217927,213.83,213.78,0.03440962]
[1738488140854,0.03217927,213.83,213.79,4.6784]
[1738488141254,0.03217927,213.83,213.78,0.03440962]
[1738488142355,0.03217927,213.83,213.78,4.71300962]
[1738488143457,0.03217927,213.83,213.8,9.12601659]
[1738488144258,10.67361659,213.96,213.8,9.12601659]
[1738488145352,0.03186735,213.9,213.86,0.03158115]
[1738488146251,4.6764,213.89,213.86,0.03158115]
[1738488146456,0.03186735,213.9,213.86,0.03158115]
[1738488147458,4.6766,213.88,213.86,0.03158115]
[1738488148153,4.6768,213.87,213.86,0.03158115]
[1738488149159,9.15788394,213.9,213.76,4.679]
[1738488149361,9.15788394,213.9,213.74,10.61171659]
[1738488149362,9.12601659,213.87,213.74,10.61171659]
[1738488149660,9.12601659,213.84,213.68,9.12601659]
[1738488149864,9.12601659,213.84,213.7,4.6805]
[1738488150060,9.12601659,213.84,213.68,9.12601659]
[1738488150357,9.12601659,213.84,213.74,0.03260074]
[1738488150358,4.71143864,213.78,213.74,0.03260074]
[1738488150563,0.03253864,213.78,213.74,0.03260074]
[1738488150958,4.6792,213.76,213.74,0.03260074]
[1738488151165,0.03253864,213.78,213.65,9.12601659]
[1738488151465,1.546,213.77,213.65,9.12601659]
[1738488152258,0.02961552,213.73,213.7,4.6804]
[1738488152464,0.02961552,213.73,213.69,0.03464138]
[1738488153869,0.02961552,213.73,213.71,4.6801]
[1738488154967,0.02961552,213.73,213.69,4.71514138]
[1738488155870,0.02961552,213.73,213.69,0.03464138]
[1738488157773,4.70951552,213.73,213.69,0.03464138]
[1738488159073,4.6801,213.72,213.69,0.03464138]
[1738488162074,0.02961552,213.73,213.69,0.03464138]
[1738488162276,4.6805,213.7,213.69,0.03464138]
[1738488162669,0.02961552,213.73,213.59,9.12601659]
[1738488162970,9.12601659,213.75,213.61,4.6822]
[1738488163275,9.12601659,213.75,213.59,9.12601659]
[1738488163573,4.681,213.68,213.63,4.682]
[1738488163770,4.681,213.68,213.65,0.03086137]
[1738488165279,4.6812,213.67,213.65,0.03086137]
[1738488166774,4.6813,213.66,213.65,0.03086137]
[1738488170080,4.6818,213.65,213.59,13.80871659]
[1738488170278,1.5306,213.68,213.59,4.6827]
[1738488170581,1.4932,213.67,213.59,4.6827]
[1738488170783,4.6821,213.63,213.59,4.6827]
[1738488171283,4.71745352,213.63,213.59,0.03520965]
[1738488171778,0.03535352,213.63,213.59,4.71800965]
[1738488175488,0.03535352,213.63,213.59,0.03520965]
[1738488177886,4.71735352,213.63,213.59,0.03520965]
[1738488180080,0.03535352,213.63,213.59,0.03520965]
[1738488181291,0.03535352,213.63,213.6,4.6826]
[1738488181486,0.03535352,213.63,213.59,0.03520965]
[1738488181985,0.03535352,213.63,213.62,4.6822]
[1738488183692,0.03535352,213.63,213.59,0.03520965]
[1738488183894,0.03535352,213.63,213.6,4.6825]
[1738488184392,0.03535352,213.63,213.61,9.12601659]
[1738488185785,0.03535352,213.63,213.62,4.6822]
[1738488189988,9.12601659,213.78,213.61,9.12601659]
[1738488190193,10.65491659,213.78,213.65,9.12601659]
[1738488190594,4.6792,213.76,213.69,4.6805]
[1738488191197,0.03046025,213.75,213.7,0.03429613]
[1738488192695,4.6798,213.73,213.7,0.03429613]
[1738488193197,0.03046025,213.75,213.7,0.03429613]
[1738488193897,4.6798,213.74,213.7,0.03429613]